bitfinex/quotes_BTCUSD_20220307
["timestamp","ask_amount","ask_price","bid_price","bid_amount"]
[1646649692398,0.545427,38258.0,38257.0,0.73531017]
[1646649692601,0.545427,38258.0,38257.0,0.43531017]
[1646649692869,0.545427,38258.0,38257.0,0.62998202]
[1646649693072,0.00021434,38262.0,38257.0,1.0307087]
[1646649693273,0.00021434,38262.0,38261.0,0.21095817]
[1646649693469,0.8008914,38276.0,38261.0,0.2683489]
[1646649693668,0.00085793,38265.0,38262.0,0.51095817]
[1646649693869,0.00085793,38265.0,38263.0,0.0522]
[1646649694068,0.00085793,38265.0,38264.0,0.19965079]
[1646649694268,0.00085793,38265.0,38264.0,0.25704152]
[1646649694668,0.065345,38271.0,38264.0,0.25704152]
[1646649694877,0.0002145,38266.0,38264.0,0.41704152]
[1646649695070,0.0002145,38266.0,38265.0,0.11425885]
[1646649695267,0.0002145,38266.0,38265.0,0.16645885]
[1646649695470,0.065346,38267.0,38266.0,0.00021633]
[1646649695769,0.065346,38267.0,38266.0,0.16667518]
[1646649697793,0.00012048,38268.0,38266.0,0.16667518]
[1646649697993,0.00012048,38268.0,38267.0,0.41425885]
[1646649698194,0.05,38270.0,38267.0,0.12872032]
[1646649698396,0.05,38270.0,38269.0,0.12872032]
[1646649698593,0.05,38270.0,38269.0,0.11425885]
[1646649699695,0.05,38270.0,38269.0,0.32595819]
[1646649699998,0.05,38270.0,38269.0,0.11425885]
[1646649700846,0.05,38270.0,38269.0,0.28273961]
[1646649701043,0.2665628,38270.0,38269.0,0.11425885]
[1646649701443,0.2665628,38270.0,38266.0,0.00021633]
[1646649701444,0.28243804,38267.0,38266.0,0.00021633]
[1646649701745,0.2665628,38270.0,38266.0,0.00021633]
[1646649701943,0.1861359,38263.0,38259.0,0.01465829]
[1646649702144,0.3452815,38263.0,38259.0,0.01465829]
[1646649702445,0.02406094,38262.0,38259.0,0.01465829]
[1646649702646,0.3668599,38263.0,38254.0,0.19797509]
[1646649702647,0.60957379,38263.0,38254.0,0.19797509]
[1646649702844,0.60957379,38263.0,38253.0,0.17931007]
[1646649702845,0.21781462,38261.0,38253.0,0.17931007]
[1646649703047,0.21781462,38261.0,38254.0,0.006]
[1646649703243,0.05,38261.0,38254.0,0.006]
[1646649703843,0.60957379,38263.0,38254.0,0.006]
[1646649704296,0.21550105,38255.0,38253.0,0.17954234]
[1646649704503,0.21550105,38255.0,38253.0,0.00023227]
[1646649704702,0.33087605,38255.0,38253.0,0.00023227]
[1646649704899,0.33087605,38255.0,38250.0,0.01306]
[1646649705502,0.15558968,38252.0,38250.0,0.01306]
[1646649705698,0.20558968,38252.0,38250.0,0.01306]
[1646649705900,0.20558968,38252.0,38248.0,0.006]
[1646649706101,0.065389,38251.0,38248.0,0.006]
[1646649706299,0.065389,38251.0,38244.0,0.4088343]
[1646649706499,0.065387,38250.0,38244.0,0.4088343]
[1646649706700,0.065387,38250.0,38245.0,0.3635594]
[1646649706904,0.05,38252.0,38245.0,0.37794101]
[1646649707098,0.02619,38261.0,38245.0,0.37794101]
[1646649707299,0.02619,38261.0,38245.0,0.43014101]
[1646649707501,0.82681389,38263.0,38245.0,0.64109918]
[1646649707699,0.82681389,38263.0,38260.0,0.19557621]
[1646649707700,0.19862059,38262.0,38260.0,0.19557621]
[1646649707954,0.06536,38262.0,38253.0,0.3]
[1646649708949,0.06536,38262.0,38258.0,0.05635951]
[1646649709350,0.00023223,38259.0,38258.0,0.05635951]
[1646649709552,0.00023223,38259.0,38258.0,0.07080572]
[1646649709953,0.00023223,38259.0,38258.0,0.42300572]
[1646649710152,0.4147,38263.0,38258.0,0.51189751]
[1646649710351,0.4147,38263.0,38260.0,0.00519073]
[1646649710554,0.4147,38263.0,38262.0,0.0125261]
[1646649710751,0.4147,38263.0,38262.0,0.3125261]
[1646649711153,0.4147,38263.0,38262.0,0.0125261]
[1646649711595,0.4147,38263.0,38260.0,0.00519073]
[1646649711596,0.19818523,38262.0,38260.0,0.00519073]
[1646649711891,0.19818523,38262.0,38258.0,0.06703797]
[1646649712091,0.19818523,38262.0,38258.0,0.01483797]
[1646649712291,0.50075524,38262.0,38258.0,0.01483797]
[1646649712491,0.50075524,38262.0,38254.0,0.0522]
[1646649712692,0.07863303,38261.0,38254.0,0.0522]
[1646649712891,0.09391701,38260.0,38254.0,0.0522]
[1646649713096,0.02826513,38258.0,38254.0,0.0522]
[1646649713290,0.065365,38259.0,38257.0,0.1162332]
[1646649713492,0.065365,38259.0,38258.0,0.1162332]
[1646649713891,0.080365,38259.0,38258.0,0.1162332]
[1646649714092,0.015,38259.0,38258.0,0.1162332]
[1646649714293,0.015,38259.0,38258.0,0.13306968]
[1646649714494,0.05,38261.0,38259.0,0.3]
[1646649714694,0.11028576,38263.0,38259.0,0.3]
[1646649714892,0.30677728,38266.0,38258.0,0.01683648]
[1646649715093,0.30677728,38266.0,38259.0,0.2083214]
[1646649715094,0.19499199,38265.0,38259.0,0.2083214]
[1646649715344,0.065357,38264.0,38259.0,0.40285192]
[1646649715753,0.065357,38264.0,38262.0,0.01422621]
[1646649716244,0.130713,38264.0,38262.0,0.01422621]
[1646649719097,0.130713,38264.0,38255.0,0.3]
[1646649719098,0.630713,38264.0,38255.0,0.3]
[1646649719297,0.630713,38264.0,38254.0,0.01445317]
[1646649719498,0.13074,38262.0,38254.0,0.01445317]
[1646649719699,0.05,38261.0,38254.0,0.01445317]
[1646649719900,0.130735,38260.0,38254.0,0.01445317]
[1646649720097,0.130735,38260.0,38254.0,0.18319904]
[1646649720597,0.065365,38260.0,38255.0,0.3]
[1646649721396,0.065365,38259.0,38255.0,0.3]
[1646649721598,0.065365,38260.0,38259.0,0.07372207]
[1646649724052,0.680743,38261.0,38259.0,0.38772599]
[1646649724053,0.5,38261.0,38259.0,0.38772599]
[1646649724249,0.00021528,38262.0,38259.0,0.16611599]
[1646649724250,0.50021528,38262.0,38259.0,0.16611599]
[1646649724450,0.50021528,38262.0,38259.0,0.4057759]
[1646649724649,0.5,38262.0,38261.0,0.21081918]
[1646649724848,0.50021528,38262.0,38261.0,0.26301918]
[1646649725048,0.50021528,38262.0,38261.0,0.26820991]
[1646649725049,0.00021528,38262.0,38261.0,0.26820991]
[1646649725258,0.00021528,38262.0,38261.0,0.33354991]
[1646649725848,0.5,38269.0,38261.0,0.63354991]
[1646649726049,0.50086097,38269.0,38266.0,0.19885568]
[1646649726253,0.05,38268.0,38267.0,0.0522]
[1646649726451,0.55,38268.0,38267.0,0.0522]
[1646649726900,0.5,38268.0,38267.0,0.48092032]
[1646649727299,0.5,38268.0,38267.0,0.18092032]
[1646649728199,0.55,38268.0,38267.0,0.25480233]
[1646649728804,0.05,38268.0,38267.0,0.55480233]
[1646649729198,0.00086097,38269.0,38267.0,0.55480233]
[1646649729400,0.00086097,38269.0,38268.0,0.12872032]
[1646649729600,0.00086097,38269.0,38268.0,0.48092032]
[1646649730001,0.00086097,38269.0,38268.0,0.18092032]
[1646649730446,0.115342,38270.0,38268.0,0.16147991]
[1646649730651,0.115342,38270.0,38269.0,0.10927991]
[1646649730846,0.05,38270.0,38269.0,0.16147991]
[1646649731247,0.05,38270.0,38269.0,0.17804422]
[1646649733652,0.05,38270.0,38269.0,0.38875111]
[1646649733955,0.130669,38272.0,38269.0,0.38875111]
[1646649734210,0.0033,38281.0,38269.0,0.38875111]
[1646649734211,0.119654,38278.0,38275.0,0.00519073]
[1646649734407,0.119654,38278.0,38277.0,0.14428587]
[1646649734408,0.4912,38278.0,38277.0,0.14428587]
[1646649734607,0.097225,38278.0,38277.0,1.44962887]
[1646649734813,0.13119641,38284.0,38279.0,0.02619]
[1646649735006,0.0011,38284.0,38283.0,0.21287024]
[1646649735210,0.0011,38284.0,38283.0,0.26507024]
[1646649735408,0.069693,38288.0,38285.0,2.39333236]
[1646649735608,0.13650359,38292.0,38288.0,1.2]
[1646649735808,0.00591759,38292.0,38289.0,0.50711032]
[1646649736008,0.133882,38299.0,38292.0,0.01214447]
[1646649736207,0.133882,38299.0,38295.0,0.2128556]
[1646649736409,0.065285,38301.0,38297.0,0.82343928]
[1646649736617,0.0011,38308.0,38303.0,0.7992]
[1646649736815,0.0011,38308.0,38304.0,0.06738115]
[1646649737012,0.0011,38308.0,38305.0,0.0522]
[1646649737210,0.19579983,38307.0,38306.0,0.0522]
[1646649737507,0.01078384,38306.0,38300.0,0.00519073]
[1646649737709,0.01078384,38306.0,38304.0,0.11420071]
[1646649737948,0.14135984,38306.0,38297.0,0.07986144]
[1646649738146,0.14135984,38306.0,38305.0,0.0522]
[1646649738350,0.31530393,38306.0,38305.0,0.0522]
[1646649738547,0.18472793,38306.0,38296.0,0.53932436]
[1646649738748,0.01579083,38305.0,38297.0,0.0522]
[1646649738950,0.20518865,38304.0,38297.0,0.0522]
[1646649739154,0.065287,38303.0,38297.0,0.0522]
[1646649739350,0.065293,38302.0,38297.0,0.0522]
[1646649739551,0.01442022,38301.0,38297.0,0.0522]
[1646649740051,0.01442022,38301.0,38296.0,0.01306264]
[1646649740256,0.01442022,38301.0,38297.0,0.0522]
[1646649740450,0.01155661,38300.0,38296.0,0.01306264]
[1646649740654,0.01155661,38300.0,38297.0,0.0522]
[1646649740851,0.01155661,38300.0,38293.0,0.3]
[1646649741153,0.195895,38298.0,38292.0,0.20385215]
[1646649741351,0.03867773,38296.0,38284.0,1.59656042]
[1646649741607,0.03867773,38296.0,38284.0,0.01515955]
[1646649741608,0.62619,38295.0,38284.0,0.01515955]
[1646649741810,0.62619,38295.0,38279.0,0.20834346]
[1646649741811,0.15680068,38289.0,38279.0,0.20834346]
[1646649742013,0.15680068,38289.0,38276.0,0.03835639]
[1646649742014,0.20131749,38282.0,38276.0,0.01335639]
[1646649742208,0.32619,38288.0,38285.0,0.02586846]
[1646649742407,0.01126361,38287.0,38277.0,0.08389746]
[1646649742609,0.31126361,38287.0,38277.0,0.08389746]
[1646649743008,0.31126361,38287.0,38278.0,0.20708293]
[1646649743009,0.20243041,38287.0,38278.0,0.20708293]
[1646649743307,0.20243041,38287.0,38281.0,0.22968991]
[1646649743507,0.02227121,38285.0,38281.0,0.22968991]
[1646649743712,0.00023216,38284.0,38281.0,0.22968991]
[1646649744207,0.00023216,38284.0,38281.0,0.01519106]
[1646649744410,0.391972,38289.0,38281.0,0.01519106]
[1646649744609,0.18204306,38289.0,38281.0,0.01519106]
[1646649744807,0.00023215,38284.0,38281.0,0.01519106]
[1646649745009,0.00215825,38284.0,38278.0,0.20708293]
[1646649745209,0.01118912,38283.0,38278.0,0.20708293]
[1646649745444,0.01118912,38283.0,38276.0,0.005]
[1646649745445,0.065323,38280.0,38276.0,0.005]
[1646649746247,0.065323,38280.0,38275.0,0.24245157]
[1646649746448,0.02736495,38281.0,38278.0,0.04125358]
[1646649746650,0.02174001,38280.0,38279.0,0.0522]
[1646649746849,0.065314,38285.0,38280.0,0.04094567]
[1646649747050,0.130637,38284.0,38280.0,0.04094567]
[1646649747445,0.065314,38285.0,38280.0,0.04094567]
[1646649747648,0.065314,38285.0,38283.0,0.20637382]
[1646649748049,0.065314,38285.0,38284.0,0.01387927]
[1646649748348,0.065318,38285.0,38284.0,0.01387927]
[1646649748547,0.065318,38285.0,38284.0,0.06607927]
[1646649750595,0.065318,38285.0,38284.0,0.20607927]
[1646649750998,0.065318,38285.0,38284.0,0.06607927]
[1646649751397,0.00021519,38286.0,38284.0,0.06607927]
[1646649751596,0.065306,38291.0,38284.0,0.06607927]
[1646649751795,0.065306,38291.0,38284.0,0.2396847]
[1646649752105,0.00021519,38286.0,38284.0,0.2396847]
[1646649752846,0.065306,38291.0,38284.0,0.2396847]
[1646649753049,0.00020607,38287.0,38284.0,0.2396847]
[1646649753247,0.00020607,38287.0,38284.0,0.06607927]
[1646649753448,0.00020607,38287.0,38284.0,0.05479418]
[1646649753647,0.00020607,38287.0,38284.0,0.0522]
[1646649753850,0.00020607,38287.0,38284.0,0.052]
[1646649754047,0.065306,38291.0,38284.0,0.052]
[1646649754246,0.00020586,38287.0,38284.0,0.052]
[1646649755252,0.065306,38291.0,38284.0,0.052]
[1646649755450,0.00020586,38287.0,38284.0,0.052]
[1646649756451,0.065306,38291.0,38284.0,0.052]
[1646649756694,0.16032359,38286.0,38284.0,0.052]
[1646649756896,0.02895725,38285.0,38280.0,0.04094567]
[1646649757299,0.04491322,38285.0,38280.0,0.04094567]
[1646649757495,0.065317,38284.0,38280.0,0.04094567]
[1646649757996,0.24727133,38281.0,38280.0,0.04094567]
[1646649759803,0.24727133,38281.0,38275.0,0.006]
[1646649759804,0.45,38280.0,38275.0,0.006]
[1646649760098,0.1830778,38279.0,38275.0,0.006]
[1646649760346,0.16958386,38278.0,38267.0,0.7411]
[1646649760549,0.130691,38276.0,38266.0,0.03]
[1646649760750,0.3,38275.0,38266.0,0.03]
[1646649761247,0.06535,38273.0,38266.0,0.03]
[1646649761447,0.065345,38272.0,38266.0,0.03]
[1646649761847,0.065345,38272.0,38269.0,0.16084478]
[1646649762049,0.01306,38279.0,38270.0,0.01357243]
[1646649762248,0.1247,38282.0,38270.0,0.01357243]
[1646649762650,0.1247,38282.0,38274.0,0.21571886]
[1646649762651,0.065328,38279.0,38274.0,0.21571886]
[1646649763251,0.065328,38279.0,38270.0,0.07889843]
[1646649763448,0.065328,38279.0,38270.0,0.01357243]
[1646649763850,0.065328,38279.0,38269.0,0.15584478]
[1646649764295,0.065328,38279.0,38273.0,0.17618004]
[1646649765297,0.130661,38279.0,38273.0,0.17618004]
[1646649766095,0.130661,38279.0,38270.0,0.01665801]
[1646649766296,0.430661,38279.0,38270.0,0.01665801]
[1646649766898,0.130661,38279.0,38270.0,0.01665801]
[1646649767097,0.130661,38279.0,38272.0,0.19016957]
[1646649767498,0.70128759,38279.0,38270.0,0.01665801]
[1646649767949,0.70128759,38279.0,38268.0,0.01375875]
[1646649768150,0.70128759,38279.0,38267.0,0.82545545]
[1646649768353,0.02398614,38278.0,38267.0,0.61530413]
[1646649768552,0.130671,38276.0,38270.0,0.1788324]
[1646649768851,0.02398614,38278.0,38276.0,0.16058198]
[1646649769451,0.02398614,38278.0,38276.0,0.35890913]
[1646649769652,0.02398614,38278.0,38276.0,0.16058198]
[1646649771055,0.2400393,38278.0,38276.0,0.16058198]
[1646649771601,0.2400393,38278.0,38271.0,0.004]
[1646649771800,0.130678,38276.0,38271.0,0.004]
[1646649772003,0.130678,38276.0,38271.0,0.20997681]
[1646649772403,0.01055471,38275.0,38271.0,0.20597681]
[1646649772605,0.02682888,38274.0,38271.0,0.20597681]
[1646649773002,0.02682888,38274.0,38268.0,0.21015132]
[1646649773201,0.02682888,38274.0,38272.0,0.14]
[1646649773405,0.02682888,38274.0,38269.0,0.21015132]
[1646649773602,0.02682888,38274.0,38273.0,0.14]
[1646649774003,0.02682888,38274.0,38269.0,0.43526452]
[1646649774204,0.09216688,38274.0,38269.0,0.43526452]
[1646649774503,0.180673,38280.0,38273.0,0.14]
[1646649774706,0.180673,38280.0,38270.0,0.21015132]
[1646649774906,0.01114108,38277.0,38269.0,0.42289843]
[1646649775347,0.130678,38276.0,38270.0,0.21015132]
[1646649775548,0.130678,38276.0,38271.0,0.21015132]
[1646649775549,0.02275711,38275.0,38271.0,0.21015132]
[1646649775745,0.02275711,38275.0,38271.0,0.37252248]
[1646649776546,0.02275711,38275.0,38271.0,0.16237116]
[1646649777249,0.02275711,38275.0,38270.0,0.21015132]
[1646649777650,0.02275711,38275.0,38271.0,0.21015132]
[1646649778251,0.065338,38273.0,38271.0,0.21015132]
[1646649778458,0.065338,38273.0,38272.0,0.14]
[1646649781318,0.065338,38273.0,38272.0,0.35015132]
[1646649782018,0.065338,38273.0,38272.0,0.14]
[1646649783057,0.065338,38273.0,38270.0,0.21015132]
[1646649783553,0.065338,38273.0,38272.0,0.14]
[1646649783752,0.065338,38273.0,38272.0,0.35015132]
[1646649783953,0.065338,38273.0,38272.0,0.21015132]
[1646649784153,0.065338,38273.0,38268.0,0.76268915]
[1646649784351,0.065338,38273.0,38268.0,0.26268915]
[1646649785256,0.065338,38273.0,38266.0,0.71214695]
[1646649785659,0.02619,38272.0,38266.0,0.53]
[1646649785851,0.06535,38271.0,38270.0,0.14]
[1646649786453,0.36535,38271.0,38264.0,0.99557393]
[1646649786714,0.261435,38268.0,38264.0,0.10783]
[1646649786915,0.4,38267.0,38262.0,0.03085697]
[1646649787131,0.42619,38267.0,38262.0,0.13867297]
[1646649787312,0.30753913,38265.0,38262.0,0.13867297]
[1646649787513,0.130726,38264.0,38260.0,0.00019918]
[1646649787813,0.130726,38264.0,38260.0,0.00019916]
[1646649787814,0.180726,38264.0,38260.0,0.00019916]
[1646649788013,0.02619,38263.0,38260.0,0.00019916]
[1646649788216,0.065366,38265.0,38260.0,0.00019916]
[1646649788217,0.115366,38265.0,38260.0,0.00019916]
[1646649788813,0.55064739,38266.0,38259.0,0.07372207]
[1646649788814,0.35883493,38267.0,38259.0,0.07372207]
[1646649789016,0.02619,38266.0,38260.0,0.00019916]
[1646649789216,0.02619,38266.0,38261.0,0.19281665]
[1646649789415,0.35883493,38267.0,38261.0,0.19281665]
[1646649789619,0.35883493,38267.0,38261.0,0.2604173]
[1646649789916,0.35883493,38267.0,38264.0,0.21907367]
[1646649790118,0.1188,38272.0,38266.0,0.01352038]
[1646649790354,0.02619,38276.0,38266.0,0.01352038]
[1646649790553,0.02619,38276.0,38266.0,0.25270569]
[1646649790758,0.02619,38278.0,38267.0,0.3]
[1646649790954,0.065342,38276.0,38272.0,0.16385081]
[1646649791353,0.130681,38276.0,38272.0,0.16385081]
[1646649791754,0.180681,38276.0,38272.0,0.16385081]
[1646649791959,0.065339,38276.0,38273.0,0.3]
[1646649792160,0.39581474,38285.0,38274.0,0.0522]
[1646649792161,0.01385625,38283.0,38274.0,0.0522]
[1646649792356,0.00079625,38283.0,38275.0,0.3]
[1646649792556,0.27831474,38285.0,38276.0,0.0522]
[1646649792760,0.00079628,38283.0,38276.0,0.0522]
[1646649792956,0.19273304,38281.0,38278.0,0.19837681]
[1646649793158,0.19273304,38281.0,38276.0,0.0522]
[1646649793369,0.065335,38280.0,38276.0,0.0522]
[1646649793856,0.080335,38280.0,38276.0,0.0522]
[1646649794104,0.080335,38280.0,38276.0,0.2184652]
[1646649794601,0.065,38280.0,38276.0,0.2184652]
[1646649794803,0.015,38280.0,38276.0,0.2184652]
[1646649795602,0.015,38280.0,38276.0,0.20718759]
[1646649795603,0.080332,38280.0,38276.0,0.20718759]
[1646649795800,0.015,38280.0,38277.0,0.3]
[1646649796006,0.015,38280.0,38278.0,0.0522]
[1646649796203,0.02272761,38279.0,38278.0,0.0522]
[1646649798665,0.01358478,38277.0,38274.0,0.21067617]
[1646649798850,0.065338,38276.0,38274.0,0.21067617]
[1646649799052,0.02151492,38275.0,38274.0,0.21067617]
[1646649799251,0.02151492,38275.0,38271.0,0.18104507]
[1646649799252,0.02151492,38275.0,38273.0,0.21567617]
[1646649799653,0.02151492,38275.0,38274.0,0.21067617]
[1646649800153,0.03024392,38275.0,38274.0,0.21067617]
[1646649800354,0.03024392,38275.0,38273.0,0.005]
[1646649800653,0.03024392,38275.0,38264.0,0.3677648]
[1646649800654,0.02619,38273.0,38269.0,0.21067617]
[1646649800852,0.065352,38274.0,38269.0,0.15857617]
[1646649801257,0.115352,38274.0,38269.0,0.15857617]
[1646649801454,0.115352,38274.0,38266.0,0.18040198]
[1646649801455,0.05,38274.0,38268.0,0.26334521]
[1646649801720,0.03024392,38275.0,38269.0,0.26334521]
[1646649801923,0.03024392,38275.0,38270.0,0.26334521]
[1646649802521,0.0295479,38275.0,38271.0,0.07064882]
[1646649802723,0.0295479,38275.0,38273.0,0.26334521]
[1646649802924,0.0295479,38275.0,38272.0,0.0522]
[1646649802925,0.0295479,38275.0,38274.0,0.26334521]
[1646649803223,0.0295479,38275.0,38274.0,0.56334521]
[1646649803621,0.01713019,38275.0,38274.0,0.56334521]
[1646649804122,0.01713019,38275.0,38274.0,0.61554521]
[1646649804419,0.01713019,38275.0,38274.0,0.31554521]
[1646649804621,0.26449207,38285.0,38274.0,0.31554521]
[1646649804821,0.00079627,38283.0,38275.0,0.3]
[1646649805022,0.02931195,38283.0,38275.0,0.3]
[1646649805225,0.02827477,38282.0,38275.0,0.3]
[1646649805452,0.02304558,38281.0,38275.0,0.3]
[1646649805652,0.00079627,38283.0,38279.0,0.18378506]
[1646649805854,0.065325,38281.0,38279.0,0.18378506]
[1646649806053,0.065325,38281.0,38274.0,0.31554521]
[1646649806455,0.060325,38281.0,38274.0,0.31554521]
[1646649807053,0.060325,38281.0,38277.0,0.16733902]
[1646649807253,0.060325,38281.0,38277.0,0.32542734]
[1646649808058,0.060325,38281.0,38277.0,0.22088379]
[1646649808357,0.060325,38281.0,38277.0,0.22109889]
[1646649808755,0.060325,38281.0,38277.0,0.15830342]
[1646649808957,0.060325,38281.0,38277.0,0.0002151]
[1646649809415,0.01580522,38280.0,38274.0,0.0522]
[1646649809620,0.196017,38279.0,38277.0,0.0002151]
[1646649810016,0.05,38278.0,38277.0,0.0002151]
[1646649810220,0.05,38278.0,38277.0,0.1924151]
[1646649810417,0.196017,38279.0,38278.0,0.0002873]
[1646649810616,0.196017,38279.0,38278.0,0.1924873]
[1646649811519,0.196017,38279.0,38278.0,0.40322091]
[1646649812117,0.196017,38279.0,38278.0,0.1924873]
[1646649812320,0.246017,38279.0,38278.0,0.1924873]
[1646649814559,0.246017,38279.0,38278.0,0.40320024]
[1646649814958,0.246017,38279.0,38278.0,0.1924873]
[1646649815156,0.246017,38279.0,38278.0,0.24665448]
[1646649815556,0.246017,38279.0,38278.0,0.1924873]
[1646649817806,0.246017,38279.0,38278.0,0.0524873]
[1646649818005,0.246017,38279.0,38278.0,0.26314731]
[1646649819309,0.23905675,38279.0,38278.0,0.26314731]
[1646649820955,0.23905675,38279.0,38278.0,0.0524873]
[1646649822357,0.23905675,38279.0,38278.0,0.0002873]
[1646649826704,0.32430663,38279.0,38271.0,0.21066001]
[1646649827006,0.21092752,38275.0,38271.0,0.21066001]
[1646649827206,0.32627252,38275.0,38273.0,0.003]
[1646649827605,0.72619,38273.0,38271.0,0.21066001]
[1646649827862,0.72619,38273.0,38267.0,0.39222138]
[1646649828055,0.7,38272.0,38265.0,1.38e-06]
[1646649828255,0.7,38272.0,38263.0,0.47153782]
[1646649828454,0.02619,38271.0,38263.0,0.26334521]
[1646649828655,0.31937164,38266.0,38263.0,0.48140176]
[1646649828854,0.36937164,38266.0,38263.0,0.21805655]
[1646649829856,0.36937164,38266.0,38263.0,0.48140176]
[1646649830056,0.36937164,38266.0,38263.0,0.48149762]
[1646649830258,0.02619,38269.0,38267.0,0.09732789]
[1646649833600,0.02619,38269.0,38267.0,0.09862789]
[1646649833803,0.196111,38270.0,38267.0,0.09862789]
[1646649834407,0.065353,38271.0,38267.0,0.09862789]
[1646649834608,0.1223,38277.0,38268.0,0.06612751]
[1646649834609,0.065336,38276.0,38268.0,0.06612751]
[1646649834909,0.065336,38276.0,38271.0,0.22248913]
[1646649835105,0.275164,38276.0,38271.0,0.22248913]
[1646649835558,0.065336,38276.0,38271.0,0.22248913]
[1646649835956,0.02616405,38275.0,38271.0,0.22248913]
[1646649836157,0.02616405,38275.0,38272.0,0.00021484]
[1646649836959,0.02616405,38275.0,38271.0,0.52248913]
[1646649837359,0.02616405,38275.0,38272.0,0.00021484]
[1646649837561,1.08397508,38281.0,38272.0,0.00021484]
[1646649837562,0.83415541,38281.0,38272.0,0.00021484]
[1646649837758,0.43425541,38281.0,38272.0,0.00021484]
[1646649837959,0.02879548,38280.0,38272.0,0.00021484]
[1646649838160,0.02879548,38280.0,38272.0,0.21070916]
[1646649838360,0.02879548,38280.0,38271.0,0.22248913]
[1646649838361,0.065336,38276.0,38271.0,0.43319829]
[1646649838560,0.065336,38276.0,38275.0,0.00021484]
[1646649839403,0.065336,38276.0,38271.0,0.43319829]
[1646649839607,0.565336,38276.0,38274.0,0.00021528]
[1646649840704,0.565336,38276.0,38271.0,0.21070916]
[1646649840903,0.01550813,38275.0,38273.0,0.00021528]
[1646649841904,0.01550813,38275.0,38270.0,0.21070916]
[1646649842102,0.01550813,38275.0,38272.0,0.00021529]
[1646649843153,0.01550813,38275.0,38270.0,0.21070916]
[1646649843354,0.01550813,38275.0,38267.0,0.3619731]
[1646649843355,0.04169813,38275.0,38272.0,0.00021524]
[1646649844356,0.04169813,38275.0,38267.0,0.10162789]
[1646649844555,0.77522689,38274.0,38272.0,0.00021524]
[1646649844757,0.18721108,38273.0,38272.0,0.00021524]
[1646649845458,0.18721108,38273.0,38267.0,0.09862789]
[1646649845657,0.18721108,38273.0,38271.0,0.00021525]
[1646649846704,0.18721108,38273.0,38267.0,0.27175543]
[1646649846904,0.18721108,38273.0,38270.0,0.00021525]
[1646649847105,0.21340108,38273.0,38270.0,0.00021525]
[1646649847308,0.02619,38273.0,38270.0,0.00021525]
[1646649847509,0.5,38274.0,38270.0,0.00021525]
[1646649848408,0.67138914,38274.0,38270.0,0.00021525]
[1646649848607,0.85797731,38274.0,38270.0,0.00021525]
[1646649848810,0.02159302,38272.0,38270.0,0.00021525]
[1646649849007,0.02159302,38272.0,38267.0,0.27175543]
[1646649849008,0.51280201,38271.0,38267.0,0.27175543]
[1646649849210,0.51280201,38271.0,38270.0,0.00021525]
[1646649850210,0.51280201,38271.0,38267.0,0.09862789]
[1646649850457,0.51280201,38271.0,38269.0,0.00021525]
[1646649851356,0.51280201,38271.0,38269.0,0.17576947]
[1646649851556,0.51280201,38271.0,38267.0,0.09862789]
[1646649851757,0.51280201,38271.0,38268.0,0.00021526]
[1646649852557,0.5,38271.0,38268.0,0.00021526]
[1646649852760,0.5,38271.0,38267.0,0.52803412]
[1646649852959,0.5,38271.0,38268.0,0.00021526]
[1646649853364,0.5,38271.0,38268.0,0.21098303]
[1646649853565,0.5,38271.0,38269.0,0.21222826]
[1646649854211,0.5,38271.0,38268.0,0.21098303]
[1646649854413,0.5,38271.0,38268.0,0.00021526]
[1646649855011,0.5,38271.0,38267.0,0.52803412]
[1646649855212,0.5,38271.0,38268.0,0.00021526]
[1646649856312,0.5,38271.0,38267.0,0.52803412]
[1646649856512,0.5,38271.0,38268.0,0.00021526]
[1646649857012,0.5,38271.0,38268.0,0.21098303]
[1646649857414,0.5,38271.0,38268.0,0.21076777]
[1646649857613,0.5,38271.0,38268.0,0.00021526]
[1646649858655,0.49988547,38271.0,38267.0,0.31726635]
[1646649858855,0.49988547,38271.0,38268.0,0.00021526]
[1646649859856,0.49988547,38271.0,38267.0,0.31726635]
[1646649860057,0.49988547,38271.0,38268.0,0.00021526]
[1646649860458,0.51433536,38271.0,38268.0,0.00021526]
[1646649861063,0.51433536,38271.0,38267.0,0.31726635]
[1646649861269,0.51433536,38271.0,38268.0,0.00021526]
[1646649862125,0.54052536,38271.0,38268.0,0.00021526]
[1646649862328,0.01483517,38270.0,38267.0,0.09862789]
[1646649862527,0.01483517,38270.0,38268.0,0.00021526]
[1646649862826,0.01483517,38270.0,38267.0,0.0875614]
[1646649862827,0.02619,38269.0,38267.0,0.0875614]
[1646649863124,0.2055006,38268.0,38267.0,0.0875614]
[1646649863526,0.20826961,38269.0,38267.0,0.0875614]
[1646649863923,0.01483517,38270.0,38267.0,0.0875614]
[1646649864124,0.01152166,38268.0,38267.0,0.0875614]
[1646649864324,0.0105209,38271.0,38267.0,0.0875614]
[1646649864525,0.01043881,38270.0,38267.0,0.0875614]
[1646649864724,0.01447004,38268.0,38267.0,0.0875614]
[1646649865354,0.01193223,38270.0,38267.0,0.0875614]
[1646649865558,0.01335986,38270.0,38267.0,0.0875614]
[1646649865854,0.21906343,38271.0,38267.0,0.0875614]
[1646649866956,0.24525343,38271.0,38267.0,0.0875614]
[1646649867156,0.21906343,38271.0,38267.0,0.0875614]
[1646649868759,0.2771919,38275.0,38267.0,0.0875614]
[1646649868760,0.2118279,38276.0,38268.0,0.3]
[1646649868958,0.01336516,38277.0,38268.0,0.3]
[1646649869216,0.22480692,38279.0,38268.0,0.3]
[1646649869414,0.01297902,38279.0,38268.0,0.3]
[1646649869615,0.01586242,38277.0,38268.0,0.3]
[1646649869918,0.01586242,38277.0,38267.0,0.0875614]
[1646649869919,0.19230625,38277.0,38270.0,0.19757366]
[1646649871217,0.01167295,38276.0,38272.0,0.18095955]
[1646649871421,0.18662542,38277.0,38272.0,0.18095955]
[1646649872865,0.21040774,38277.0,38270.0,0.19757366]
[1646649873864,0.21040774,38277.0,38272.0,0.18708772]
[1646649877209,0.20540774,38277.0,38272.0,0.18708772]
[1646649877609,0.25540774,38277.0,38272.0,0.18708772]
[1646649878509,0.32075774,38277.0,38272.0,0.18708772]
[1646649878709,0.31185774,38277.0,38272.0,0.18708772]
[1646649880369,0.13541391,38277.0,38272.0,0.18708772]
[1646649880560,0.02006391,38277.0,38273.0,0.3]
[1646649880757,0.02097161,38276.0,38273.0,0.66818867]